[Event "*** Titled Tuesday Blitz"]
[Site "Chess.com"]
[Date "2018.07.03"]
[Round "10"]
[White "EndgameGrinder"]
[Black "pulvettd"]
[Result "1/2-1/2"]
[WhiteElo "2465"]
[BlackElo "2466"]
[TimeControl "180+2"]
[EndTime "15:21:05 PDT"]
[Termination "Game drawn by repetition"]

1. e4 {[%clk 0:03:01.9]} 1... c5 {[%clk 0:03:00]} 2. Nf3 {[%clk 0:03:02.9]} 2...
d6 {[%clk 0:03:01.3]} 3. d4 {[%clk 0:03:03.7]} 3... cxd4 {[%clk 0:03:03.2]} 4.
Nxd4 {[%clk 0:03:04.5]} 4... Nf6 {[%clk 0:03:03.5]} 5. Nc3 {[%clk 0:03:05.7]}
5... a6 {[%clk 0:03:05.2]} 6. Bg5 {[%clk 0:03:06.7]} 6... e6 {[%clk 0:03:06.7]}
7. f4 {[%clk 0:03:07.7]} 7... Be7 {[%clk 0:03:08.3]} 8. Qf3 {[%clk 0:03:08.6]}
8... h6 {[%clk 0:03:09.8]} 9. Bh4 {[%clk 0:03:08.2]} 9... g5 {[%clk 0:03:11.3]}
10. fxg5 {[%clk 0:03:04]} 10... Nfd7 {[%clk 0:03:12.8]} 11. Qh5 {[%clk
0:02:55.6]} 11... Ne5 {[%clk 0:03:12]} 12. Be2 {[%clk 0:02:46]} 12... Ng6 {[%clk
0:03:10]} 13. Bg3 {[%clk 0:02:32.6]} 13... hxg5 {[%clk 0:03:10.8]} 14. Qf3
{[%clk 0:02:28.9]} 14... Ne5 {[%clk 0:03:11.2]} 15. Qf2 {[%clk 0:02:25.4]} 15...
Nbc6 {[%clk 0:03:08.2]} 16. O-O-O {[%clk 0:02:25.6]} 16... Rh7 {[%clk
0:03:09.4]} 17. Nxc6 {[%clk 0:02:21.1]} 17... Nxc6 {[%clk 0:03:11.3]} 18. e5
{[%clk 0:02:20.8]} 18... d5 {[%clk 0:03:05.3]} 19. Ne4 {[%clk 0:01:56.6]} 19...
Bd7 {[%clk 0:02:54.7]} 20. Nf6+ {[%clk 0:01:47.7]} 20... Bxf6 {[%clk 0:02:54.4]}
21. exf6 {[%clk 0:01:49.6]} 21... Qa5 {[%clk 0:02:53.3]} 22. Kb1 {[%clk
0:01:49.5]} 22... O-O-O {[%clk 0:02:50.4]} 23. Qe3 {[%clk 0:01:08.5]} 23... d4
{[%clk 0:02:43.3]} 24. Qe4 {[%clk 0:00:57.6]} 24... Rh6 {[%clk 0:02:40.8]} 25.
Rhf1 {[%clk 0:00:54.5]} 25... Qc5 {[%clk 0:02:25.9]} 26. Rf3 {[%clk 0:00:31.6]}
26... e5 {[%clk 0:02:20.6]} 27. c3 {[%clk 0:00:27]} 27... Be6 {[%clk 0:02:17.6]}
28. cxd4 {[%clk 0:00:26.1]} 28... Rxd4 {[%clk 0:02:12.4]} 29. Rxd4 {[%clk
0:00:26.3]} 29... exd4 {[%clk 0:02:13.4]} 30. Rf1 {[%clk 0:00:15.5]} 30... Kd7
{[%clk 0:01:44.3]} 31. a3 {[%clk 0:00:16.6]} 31... Qd5 {[%clk 0:01:33.6]} 32.
Qxd5+ {[%clk 0:00:12.5]} 32... Bxd5 {[%clk 0:01:35.5]} 33. Bg4+ {[%clk
0:00:13.4]} 33... Be6 {[%clk 0:01:35.8]} 34. Bf3 {[%clk 0:00:13.3]} 34... g4
{[%clk 0:01:37.2]} 35. Bxc6+ {[%clk 0:00:13.8]} 35... Kxc6 {[%clk 0:01:34.7]}
36. Be5 {[%clk 0:00:15.7]} 36... Kd5 {[%clk 0:01:34.3]} 37. Bg3 {[%clk
0:00:15.3]} 37... Rh8 {[%clk 0:01:32.2]} 38. Kc1 {[%clk 0:00:14.3]} 38... Rc8+
{[%clk 0:01:29.1]} 39. Kd2 {[%clk 0:00:15.7]} 39... Rc6 {[%clk 0:01:27.7]} 40.
Re1 {[%clk 0:00:16.6]} 40... Rb6 {[%clk 0:01:24.1]} 41. b4 {[%clk 0:00:17.7]}
41... Rc6 {[%clk 0:01:23.3]} 42. Re5+ {[%clk 0:00:17.9]} 42... Kc4 {[%clk
0:01:24.6]} 43. Re4 {[%clk 0:00:14.1]} 43... Kd5 {[%clk 0:01:17.4]} 44. Re5+
{[%clk 0:00:15.3]} 44... Kc4 {[%clk 0:01:18.8]} 45. Re4 {[%clk 0:00:16.8]} 45...
Bf5 {[%clk 0:01:14.1]} 46. Rf4 {[%clk 0:00:11.5]} 46... Bg6 {[%clk 0:01:09.9]}
47. Bf2 {[%clk 0:00:10.9]} 47... Kb3 {[%clk 0:01:08]} 48. Bxd4 {[%clk
0:00:03.6]} 48... Rc2+ {[%clk 0:01:09.9]} 49. Ke3 {[%clk 0:00:04.6]} 49... Rxg2
{[%clk 0:01:06]} 50. Rf2 {[%clk 0:00:03.3]} 50... Rxf2 {[%clk 0:01:06.9]} 51.
Kxf2 {[%clk 0:00:05.2]} 51... Kxa3 {[%clk 0:01:07.4]} 52. Bc5 {[%clk 0:00:06.8]}
52... Kb3 {[%clk 0:01:04.8]} 53. Ke3 {[%clk 0:00:07.8]} 53... Bf5 {[%clk
0:01:05.5]} 54. Kf4 {[%clk 0:00:07.9]} 54... Be6 {[%clk 0:01:06.4]} 55. Ke3
{[%clk 0:00:09.1]} 55... Kc4 {[%clk 0:01:07]} 56. Be7 {[%clk 0:00:09.9]} 56...
b6 {[%clk 0:01:04.7]} 57. Kd2 {[%clk 0:00:08.2]} 57... a5 {[%clk 0:01:04.6]} 58.
bxa5 {[%clk 0:00:10.1]} 58... bxa5 {[%clk 0:01:06.1]} 59. Kc1 {[%clk 0:00:11.5]}
59... a4 {[%clk 0:01:07.6]} 60. Kb2 {[%clk 0:00:12.6]} 60... Kd3 {[%clk
0:01:06]} 61. Ka3 {[%clk 0:00:13.6]} 61... Bb3 {[%clk 0:01:07.4]} 62. Bd6 {[%clk
0:00:14.1]} 62... Ke4 {[%clk 0:01:08.8]} 63. Be7 {[%clk 0:00:15]} 63... Kf3
{[%clk 0:01:10.3]} 64. Bd8 {[%clk 0:00:16.1]} 64... Kg2 {[%clk 0:01:11.8]} 65.
Bc7 {[%clk 0:00:17.3]} 65... Kh3 {[%clk 0:01:13.3]} 66. Bg3 {[%clk 0:00:17.9]}
66... Bc2 {[%clk 0:01:13.9]} 67. Kb4 {[%clk 0:00:19]} 67... Bb3 {[%clk
0:01:15.8]} 68. Ka3 {[%clk 0:00:20.5]} 68... Kg2 {[%clk 0:01:17.4]} 69. Kb4
{[%clk 0:00:22.4]} 69... Kf3 {[%clk 0:01:19]} 70. Ka3 {[%clk 0:00:24.3]} 70...
Ke4 {[%clk 0:01:20.9]} 71. Bc7 {[%clk 0:00:24.9]} 71... Kf5 {[%clk 0:01:22.8]}
72. Bd8 {[%clk 0:00:26]} 72... Ke6 {[%clk 0:01:22.5]} 73. Kb4 {[%clk 0:00:26]}
73... Kf5 {[%clk 0:01:22.7]} 74. Ka3 {[%clk 0:00:26.9]} 74... Ke4 {[%clk
0:01:24.6]} 75. Kb4 {[%clk 0:00:28.3]} 75... Kd3 {[%clk 0:01:26.4]} 76. Ka3
{[%clk 0:00:29.4]} 76... Kc3 {[%clk 0:01:27]} 77. Bc7 {[%clk 0:00:30.8]} 77...
Kd4 {[%clk 0:01:27.8]} 78. Bb6+ {[%clk 0:00:31.5]} 78... Kd5 {[%clk 0:01:28.8]}
79. Bd8 {[%clk 0:00:33.4]} 79... Kd6 {[%clk 0:01:29.7]} 80. Be7+ {[%clk
0:00:33.8]} 80... Ke6 {[%clk 0:01:30.8]} 81. Kb4 {[%clk 0:00:35.4]} 81... Kf5
{[%clk 0:01:32.2]} 82. Ka3 {[%clk 0:00:35.8]} 82... Kf4 {[%clk 0:01:33.4]} 83.
Bd6+ {[%clk 0:00:36.1]} 83... Ke4 {[%clk 0:01:31.6]} 84. Kb4 {[%clk 0:00:36.5]}
84... Bd1 {[%clk 0:01:33.5]} 85. Ka3 {[%clk 0:00:36.6]} 85... Ke3 {[%clk
0:01:34.2]} 86. Kb4 {[%clk 0:00:37.2]} 86... Kd3 {[%clk 0:01:36.1]} 87. Ka3
{[%clk 0:00:38.3]} 87... Kd2 {[%clk 0:01:36.5]} 88. Bc7 {[%clk 0:00:39.2]} 88...
Kc1 {[%clk 0:01:38.4]} 89. Bd6 {[%clk 0:00:40.5]} 89... Kb1 {[%clk 0:01:40.2]}
90. Bc7 {[%clk 0:00:41.6]} 90... Kc2 {[%clk 0:01:41.1]} 91. Bd6 {[%clk
0:00:42.7]} 91... Kd3 {[%clk 0:01:42.6]} 92. Bc7 {[%clk 0:00:43.5]} 92... Ke4
{[%clk 0:01:44.5]} 93. Bd6 {[%clk 0:00:44.4]} 93... Kf5 {[%clk 0:01:45.2]} 94.
Be7 {[%clk 0:00:45.3]} 94... Ke5 {[%clk 0:01:47.1]} 95. Bd8 {[%clk 0:00:45.2]}
95... Ke6 {[%clk 0:01:49]} 96. Be7 {[%clk 0:00:46]} 96... Bf3 {[%clk 0:01:50.4]}
97. Bd8 {[%clk 0:00:46.6]} 97... Bc6 {[%clk 0:01:51.9]} 98. Be7 {[%clk
0:00:47.6]} 98... Kf5 {[%clk 0:01:53.4]} 99. Bd8 {[%clk 0:00:48.7]} 99... Kg5
{[%clk 0:01:54.7]} 100. Be7 {[%clk 0:00:49.2]} 100... Kh4 {[%clk 0:01:56.6]}
101. Bd8 {[%clk 0:00:50.2]} 101... Kh3 {[%clk 0:01:58.5]} 102. Bc7 {[%clk
0:00:51]} 102... Kh4 {[%clk 0:01:59.6]} 103. Kb4 {[%clk 0:00:51.9]} 103... Kg5
{[%clk 0:02:01.5]} 104. Bd8 {[%clk 0:00:52.7]} 104... Kf5 {[%clk 0:02:03.4]}
105. Ka3 {[%clk 0:00:52.8]} 105... g3 {[%clk 0:02:05.3]} 106. hxg3 {[%clk
0:00:53.4]} 106... Kg4 {[%clk 0:02:06.2]} 107. Bc7 {[%clk 0:00:54.3]} 107... Kg5
{[%clk 0:02:07.2]} 108. Bd8 {[%clk 0:00:55.1]} 108... Kf5 {[%clk 0:02:08.3]}
109. Kb4 {[%clk 0:00:55.1]} 109... Bd7 {[%clk 0:02:09.6]} 110. Be7 {[%clk
0:00:54.7]} 110... Be6 {[%clk 0:02:09.3]} 111. Kxa4 {[%clk 0:00:53.9]} 111...
Kg4 {[%clk 0:02:11.2]} 112. Bd6 {[%clk 0:00:54.6]} 112... Kg5 {[%clk 0:02:13.1]}
113. Be5 {[%clk 0:00:52.7]} 113... Kg4 {[%clk 0:02:15]} 114. Kb4 {[%clk
0:00:53.3]} 114... Kg5 {[%clk 0:02:16.9]} 115. Kc5 {[%clk 0:00:54.3]} 115... Kf5
{[%clk 0:02:18.8]} 116. Kd6 {[%clk 0:00:55.5]} 116... Kg4 {[%clk 0:02:19]} 117.
Ke7 {[%clk 0:00:56.2]} 117... Kf5 {[%clk 0:02:20.9]} 118. Kd6 {[%clk 0:00:57.5]}
118... Kg6 {[%clk 0:02:22.8]} 119. Kc5 {[%clk 0:00:58.2]} 119... Bg4 {[%clk
0:02:24.4]} 120. Kd4 {[%clk 0:00:59.3]} 120... Be6 {[%clk 0:02:26.3]} 121. Ke4
{[%clk 0:01:00.4]} 121... Bg4 {[%clk 0:02:28.2]} 122. Kf4 {[%clk 0:01:01.7]}
122... Be6 {[%clk 0:02:30.1]} 123. Bd4 {[%clk 0:01:02.4]} 123... Bd7 {[%clk
0:02:32]} 124. Bc3 {[%clk 0:01:03.6]} 124... Bc8 {[%clk 0:02:33.9]} 125. Bb2
{[%clk 0:01:04.5]} 125... Bd7 {[%clk 0:02:35.8]} 126. Ke5 {[%clk 0:00:59.2]}
126... Bc6 {[%clk 0:02:37.7]} 127. Bc3 {[%clk 0:01:00.4]} 127... Ba4 {[%clk
0:02:39.6]} 128. Bb2 {[%clk 0:01:00.3]} 128... Bb3 {[%clk 0:02:41.5]} 129. Bc3
{[%clk 0:01:01.5]} 129... Be6 {[%clk 0:02:43.4]} 130. Bb2 {[%clk 0:01:02.6]}
130... Bh3 {[%clk 0:02:43.7]} 131. Bc3 {[%clk 0:01:03.5]} 131... Bg2 {[%clk
0:02:44.7]} 132. Kf4 {[%clk 0:01:04.1]} 132... Bh3 {[%clk 0:02:45.8]} 133. Kf3
{[%clk 0:01:05.1]} 133... Be6 {[%clk 0:02:46.2]} 134. Ke4 {[%clk 0:01:05.2]}
134... Bd7 {[%clk 0:02:48.1]} 135. Ke5 {[%clk 0:01:06.1]} 135... Bc8 {[%clk
0:02:50]} 136. Kd6 {[%clk 0:01:07.6]} 136... Be6 {[%clk 0:02:50.6]} 137. Ke7
{[%clk 0:01:09]} 137... Bf5 {[%clk 0:02:52.5]} 138. Kd6 {[%clk 0:01:09.9]}
138... Be6 {[%clk 0:02:54.4]} 139. Ke5 {[%clk 0:01:11.2]} 139... Bb3 {[%clk
0:02:54.2]} 140. Kf4 {[%clk 0:01:10.4]} 140... Kh7 {[%clk 0:00:52.6]} 141. Kg5
{[%clk 0:01:08.2]} 141... Be6 {[%clk 0:00:54.5]} 142. Bd4 {[%clk 0:01:08.6]}
142... Bc4 {[%clk 0:00:53.7]} 143. Bc3 {[%clk 0:01:10.5]} 143... Bd3 {[%clk
0:00:55.5]} 144. Bd4 {[%clk 0:01:12.4]} 144... Bg6 {[%clk 0:00:56.9]} 145. Bc3
{[%clk 0:01:14.3]} 145... Bd3 {[%clk 0:00:57.6]} 146. Bd4 {[%clk 0:01:16.2]}
146... Bg6 {[%clk 0:00:58.5]} 147. Bc3 {[%clk 0:01:18.1]} 147... Kg8 {[%clk
0:00:58.3]} 148. Bd4 {[%clk 0:01:20]} 148... Be4 {[%clk 0:00:58.9]} 149. Bc3
{[%clk 0:01:21.9]} 149... Bd3 {[%clk 0:01:00.4]} 150. Bd4 {[%clk 0:01:23.7]}
150... Bc2 {[%clk 0:01:02.3]} 151. Bc5 {[%clk 0:01:25.3]} 151... Bb1 {[%clk
0:01:04.2]} 152. Bd6 {[%clk 0:01:27.2]} 152... Ba2 {[%clk 0:01:05.9]} 153. Bc5
{[%clk 0:01:29.1]} 153... Bb1 {[%clk 0:01:07.8]} 154. Bd6 {[%clk 0:01:31]}
154... Bc2 {[%clk 0:01:09.7]} 155. Bc5 {[%clk 0:01:32.9]} 155... Bg6 {[%clk
0:01:11.1]} 156. Bd6 {[%clk 0:01:34.8]} 156... Bh7 {[%clk 0:01:12.9]} 157. Bc5
{[%clk 0:01:36.7]} 157... Bg6 {[%clk 0:01:14.6]} 158. Bd6 {[%clk 0:01:38.6]}
158... Be4 {[%clk 0:01:16.1]} 159. Bc5 {[%clk 0:01:40.5]} 159... Kh7 {[%clk
0:01:17.5]} 160. Bd6 {[%clk 0:01:42.4]} 160... Bd5 {[%clk 0:01:18.7]} 161. Bc5
{[%clk 0:01:43.5]} 161... Be6 {[%clk 0:01:20.6]} 162. Bd6 {[%clk 0:01:44.7]}
162... Bd7 {[%clk 0:01:22.5]} 163. Bc5 {[%clk 0:01:44.7]} 163... Bc8 {[%clk
0:01:24.4]} 164. Bd6 {[%clk 0:01:46]} 164... Be6 {[%clk 0:01:26.3]} 165. Bc5
{[%clk 0:01:47.5]} 165... Bd5 {[%clk 0:00:30.4]} 166. Bd6 {[%clk 0:01:49.4]}
166... Bc4 {[%clk 0:00:31.7]} 167. Bc5 {[%clk 0:01:50.5]} 167... Be6 {[%clk
0:00:33.6]} 168. Bd6 {[%clk 0:01:52.4]} 168... Bb3 {[%clk 0:00:35.3]} 169. Bc5
{[%clk 0:01:54.3]} 169... Be6 {[%clk 0:00:37]} 170. Bd6 {[%clk 0:01:56.2]}
170... Bd7 {[%clk 0:00:36.2]} 171. Bc5 {[%clk 0:01:58.1]} 171... Bc8 {[%clk
0:00:37.8]} 172. Bd6 {[%clk 0:02:00]} 172... Bd7 {[%clk 0:00:38.1]} 173. Bc5
{[%clk 0:02:01.9]} 173... Be6 {[%clk 0:00:40]} 174. Bd6 {[%clk 0:02:03.8]}
174... Bd7 {[%clk 0:00:41.8]} 175. Bc5 {[%clk 0:02:05.7]} 175... Bc6 {[%clk
0:00:43.7]} 176. Bd6 {[%clk 0:02:07.6]} 176... Bd5 {[%clk 0:00:45.6]} 177. Bc5
{[%clk 0:02:09.5]} 177... Be6 {[%clk 0:00:47.4]} 1/2-1/2